fUST/lending_fUST_20260212
["ID","MTS","AMOUNT","RATE_DAILY","PERIOD"]
[405125487,1770865840773,-500.0,0.00035616,5]
[405125488,1770865840782,-500.0,0.00035616,5]
[405125489,1770865840791,-500.0,0.00035616,5]
[405125490,1770865840807,-279.03371693,0.00035616,5]
[405125491,1770865840817,-154.26597253,0.00035616,5]
[405125492,1770865840826,-500.0,0.00035616,5]
[405125493,1770865840836,-863.41,0.00035616,5]
[405125494,1770865840845,-914.41,0.00035616,5]
[405125495,1770865840855,-500.0,0.00035616,5]
[405125496,1770865840864,-156.49114257,0.00035616,5]
[405125497,1770865840874,-509.86,0.00035616,2]
[405125498,1770865840883,-742.27,0.00035616,5]
[405125499,1770865840893,-500.0,0.00035616,5]
[405125500,1770865840903,-666.7,0.00035616,5]
[405125501,1770865840913,-536.35837138,0.00035616,120]
[405125502,1770865840923,-301.59655502,0.00035616,5]
[405125503,1770865840932,-500.0,0.00035616,5]
[405125504,1770865840943,-715.12,0.00035616,5]
[405125505,1770865841027,-152.44637697,0.00035616,5]
[405125506,1770865841038,-500.0,0.00035616,5]
[405125507,1770865841048,-500.0,0.00035616,5]
[405125508,1770865841058,-500.0,0.00035616,5]
[405125509,1770865841068,-554.26020471,0.00035616,5]
[405125510,1770865841085,-526.6964873,0.00035616,5]
[405125511,1770865841099,-500.0,0.00035616,5]
[405125512,1770865841110,-818.35,0.00035616,5]
[405125513,1770865841122,-530.42323417,0.00035616,5]
[405125514,1770865841133,-500.0,0.00035616,5]
[405125515,1770865841143,-500.0,0.00035616,5]
[405125516,1770865841153,-500.0,0.00035616,5]
[405125517,1770865841163,-500.0,0.00035616,5]
[405125518,1770865841173,-500.0,0.00035616,5]
[405125519,1770865841183,-543.57419326,0.00035616,5]
[405125520,1770865841193,-500.0,0.00035616,5]
[405125521,1770865841206,-804.1,0.00035616,5]
[405125522,1770865841216,-500.0,0.00035616,5]
[405125523,1770865841227,-500.0,0.00035616,5]
[405125524,1770865841237,-707.95,0.00035616,5]
[405125525,1770865841247,-244.03266405,0.00035616,5]
[405125526,1770865841257,-500.0,0.00035616,5]
[405125527,1770865841267,-500.0,0.00035616,5]
[405125528,1770865841279,-589.27914011,0.00035616,5]
[405125529,1770865841289,-508.74405884,0.00035616,5]
[405125530,1770865841299,-773.6,0.00035616,5]
[405125531,1770865841308,-500.0,0.00035616,5]
[405125532,1770865841319,-500.0,0.00035616,5]
[405125533,1770865841328,-500.0,0.00035616,5]
[405125534,1770865841338,-500.0,0.00035616,5]
[405125535,1770865841348,-680.21,0.00035616,5]
[405125536,1770865841360,-500.0,0.00035616,5]
[405125537,1770865841369,-583.7,0.00035616,5]
[405125538,1770865841379,-393.20443095,0.00035616,5]
[405125539,1770865841389,-500.0,0.00035616,5]
[405125540,1770865841399,-500.0,0.00035616,5]
[405125541,1770865841409,-771.02,0.00035616,5]
[405125542,1770865841419,-393.39570072,0.00035616,5]
[405125543,1770865841428,-500.0,0.00035616,5]
[405125544,1770865841438,-12247.88,0.00035616,5]
[405125545,1770865841447,-517.22,0.00035616,5]
[405125546,1770865841457,-500.0,0.00035616,5]
[405125547,1770865841466,-413.15907957,0.00035616,5]
[405125548,1770865841476,-1253.57,0.00035616,5]
[405125549,1770865841486,-500.0,0.00035616,5]
[405125550,1770865841495,-500.0,0.00035616,5]
[405125551,1770865841505,-287.77775619,0.00035616,5]
[405125552,1770865841514,-500.0,0.00035616,5]
[405125553,1770865841523,-1000.0,0.00035616,2]
[405125554,1770865841533,-153.24426858,0.00035616,5]
[405125555,1770865841543,-8808.21,0.00035616,5]
[405125556,1770865841554,-500.0,0.00035616,5]
[405125557,1770865841564,-529.3919858,0.00035616,5]
[405125558,1770865841573,-500.0,0.00035616,5]
[405125559,1770865841583,-183.48417919,0.00035616,5]
[405125560,1770865841593,-176.82597589,0.00035616,5]
[405125561,1770865841602,-500.0,0.00035616,2]
[405125562,1770865841612,-500.0,0.00035616,5]
[405125563,1770865841622,-158.69075484,0.00035616,5]
[405125564,1770865841632,-500.0,0.00035616,5]
[405125565,1770865841641,-500.0,0.00035616,5]
[405125566,1770865841651,-184.26841542,0.00035616,5]
[405125567,1770865841661,-4185.11,0.00035616,5]
[405125568,1770865841670,-500.0,0.00035616,5]
[405125569,1770865841680,-1795.55,0.00035616,5]
[405125570,1770865841689,-162.83933258,0.00035616,5]
[405125571,1770865841699,-500.0,0.00035616,5]
[405125572,1770865841710,-500.0,0.00035616,5]
[405125573,1770865841720,-500.0,0.00035616,5]
[405125574,1770865841729,-260.40874327,0.00035616,5]
[405125575,1770865841738,-500.0,0.00035616,5]
[405125576,1770865841749,-649.4147551,0.00035616,5]
[405125577,1770865841758,-500.0,0.00035616,5]
[405125578,1770865841768,-500.0,0.00035616,5]
[405125579,1770865841778,-500.0,0.00035616,5]
[405125580,1770865841787,-500.0,0.00035616,5]
[405125581,1770865841797,-5005.86,0.00035616,2]
[405125582,1770865841807,-251.18946644,0.00035616,5]
[405125583,1770865841817,-500.0,0.00035616,5]
[405125584,1770865841828,-1117.07,0.00035616,5]
[405125585,1770865841838,-702.48,0.00035616,5]
[405125586,1770865841847,-500.0,0.00035616,5]
[405125587,1770865841858,-500.0,0.00035616,5]
[405125588,1770865841868,-500.0,0.00035616,5]
[405125589,1770865841878,-158.73450473,0.00035616,5]
[405125590,1770865841887,-500.0,0.00035616,5]
[405125591,1770865841897,-500.0,0.00035616,5]
[405125592,1770865841907,-551.43390066,0.00035616,5]
[405125593,1770865841916,-1875.02,0.00035616,5]
[405125594,1770865841926,-769.52,0.00035616,5]
[405125595,1770865841937,-35689.45845961,0.00035616,5]
[405125610,1770865845671,-585.75366434,0.00035606,10]
[405125615,1770865846673,-798.16633566,0.00035606,10]
[405125616,1770865846683,-492.56,0.00035606,3]
[405125617,1770865846692,-401.98366434,0.00035616,5]
[405125621,1770866469682,639.25665375,0.00013699,2]
[405125653,1770866759090,-150.0,0.00025296,2]
[405125654,1770866759112,-48.5153339,0.00027062,2]
[405125655,1770866832075,-137.6555531,0.00027062,2]
[405125656,1770866832099,-177.0,0.00027296,2]
[405125657,1770866832121,-439.38137285,0.00028127,2]
[405125658,1770866833083,-842.47310849,0.00028127,2]
[405125659,1770866849085,-683.34514761,0.00028127,2]
[405125660,1770866849106,-204.0,0.00029296,2]
[405125661,1770866849127,-333.77284384,0.00029541,2]
[405125662,1770866849146,-170.525249,0.00029845,2]
[405125663,1770866849165,-284.75,0.00030137,2]
[405125664,1770866849186,-134.93479348,0.00030142,2]
[405125665,1770866898726,2145.93872922,0.000176,2]
[405125666,1770866908000,14332.71765574,0.00017,2]
[405125667,1770866908945,808.20724447,0.0002,2]
[405125668,1770866910466,373.03812502,0.0002,2]
[405125669,1770866915959,15777.58710956,0.0002,2]
[405125670,1770866922217,15774.61410707,0.00021,2]
[405125671,1770866923611,13173.76424334,0.00019,2]
[405125672,1770866957105,-2684.27298182,0.00024403,2]
[405125673,1770866959521,-197.76050672,0.00024403,2]
[405125674,1770866962091,-89.09443794,0.00024403,2]
[405125675,1770866962111,-1109.15122397,0.0002465,2]
[405125676,1770866962132,-853.69304673,0.00025,2]
[405125707,1770867033949,-233.23211675,0.00024258,2]
[405125714,1770867037732,-661.25938414,0.00024258,2]
[405125715,1770867037741,-178.33349553,0.00024503,2]
[405125716,1770867037751,-197.76050675,0.0002475,2]
[405125717,1770867037762,-108.3808182,0.00025,2]
[405125718,1770867037772,-150.0,0.00025103,2]
[405125719,1770867037781,-600.0,0.00027,14]
[405125720,1770867037791,-177.0,0.00027103,2]
[405125721,1770867037800,-162.65929625,0.00028,30]
[405125722,1770867037810,-333.6666692,0.00028983,2]
[405125723,1770867037819,-204.0,0.00029103,2]
[405125724,1770867037829,-509.69435211,0.00030142,2]
[405125725,1770867037838,-523.06677321,0.00030142,2]
[405125726,1770867037847,-500.0,0.00030142,2]
[405125727,1770867037857,-500.0,0.00030142,2]
[405125728,1770867037866,-500.0,0.00030142,2]
[405125729,1770867037876,-500.0,0.00030142,2]
[405125730,1770867037886,-500.0,0.00030142,2]
[405125731,1770867037895,-500.0,0.00030142,2]
[405125732,1770867037904,-500.0,0.00030142,2]
[405125733,1770867037915,-500.0,0.00030142,2]
[405125734,1770867037925,-500.0,0.00030142,2]
[405125735,1770867037935,-500.0,0.00030142,2]
[405125736,1770867037944,-500.0,0.00030142,2]
[405125737,1770867037953,-500.0,0.00030142,2]
[405125738,1770867037963,-500.0,0.00030142,2]
[405125739,1770867037972,-500.0,0.00030142,2]
[405125740,1770867037982,-500.0,0.00030142,2]
[405125741,1770867037992,-500.0,0.00030142,2]
[405125742,1770867038001,-500.0,0.00030142,2]
[405125743,1770867038010,-500.0,0.00030142,2]
[405125744,1770867038020,-500.0,0.00030142,2]
[405125745,1770867038029,-500.0,0.00030142,2]
[405125746,1770867038039,-500.0,0.00030142,2]
[405125747,1770867038048,-500.0,0.00030142,2]
[405125748,1770867038058,-500.0,0.00030142,2]
[405125749,1770867038067,-500.0,0.00030142,2]
[405125750,1770867038076,-500.0,0.00030142,2]
[405125751,1770867038086,-500.0,0.00030142,2]
[405125752,1770867038096,-500.0,0.00030142,2]
[405125753,1770867038106,-500.0,0.00030142,2]
[405125754,1770867038115,-500.0,0.00030142,2]
[405125755,1770867038125,-500.0,0.00030142,2]
[405125756,1770867038135,-217.85302444,0.00030142,2]
[405125757,1770867038145,-500.0,0.00030142,2]
[405125758,1770867038154,-500.0,0.00030142,2]
[405125759,1770867038165,-500.0,0.00030142,2]
[405125760,1770867038181,-500.0,0.00030142,2]
[405125761,1770867038191,-500.0,0.00030142,2]
[405125762,1770867038200,-425.43805568,0.00030142,2]
[405125763,1770867038210,-500.0,0.00030142,2]
[405125764,1770867038220,-500.0,0.00030142,2]
[405125765,1770867038229,-500.0,0.00030142,2]
[405125766,1770867038238,-500.0,0.00030142,2]
[405125767,1770867038247,-500.0,0.00030142,2]
[405125768,1770867038256,-500.0,0.00030142,2]
[405125769,1770867038265,-500.0,0.00030142,2]
[405125770,1770867038274,-500.0,0.00030142,2]
[405125771,1770867038283,-500.0,0.00030142,2]
[405125772,1770867038292,-500.0,0.00030142,2]
[405125773,1770867038302,-300.0,0.00030142,2]
[405125774,1770867038312,-500.0,0.00030142,2]
[405125775,1770867038321,-400.0,0.00030142,2]
[405125776,1770867038331,-2232.28535782,0.00030142,2]
[405125777,1770867038340,-500.0,0.00030143,2]
[405125778,1770867038350,-500.0,0.00030143,2]
[405125779,1770867038359,-500.0,0.00030143,2]
[405125780,1770867038368,-500.0,0.00030143,2]
[405125781,1770867038378,-500.0,0.00030143,2]
[405125782,1770867038387,-500.0,0.00030143,2]
[405125783,1770867038396,-355.49171892,0.00030143,2]
[405125784,1770867038405,-500.0,0.00030143,2]
[405125785,1770867038415,-500.0,0.00030143,2]
[405125786,1770867038424,-500.0,0.00030143,2]
[405125787,1770867038433,-500.0,0.00030143,2]
[405125788,1770867038442,-500.0,0.00030143,2]
[405125789,1770867038451,-500.0,0.00030143,2]
[405125790,1770867038460,-500.0,0.00030143,2]
[405125791,1770867038469,-500.0,0.00030143,2]
[405125792,1770867038478,-500.0,0.00030143,2]
[405125793,1770867038489,-10000.0,0.00030246,2]
[405125794,1770867038498,-500.0,0.00030416,2]
[405125795,1770867038507,-381.47333269,0.00030618,2]
[405125796,1770867038516,-500.0,0.0003069,2]
[405125797,1770867038526,-744.730668,0.000307,2]
[405125798,1770867038536,-803.63533029,0.00030778,2]
[405125799,1770867038546,-600.60000457,0.0003092,2]
[405125800,1770867038555,-500.0,0.00030964,2]
[405125801,1770867038565,-170.525249,0.00031101,2]
[405125802,1770867038574,-231.0,0.00031103,2]
[405125803,1770867038584,-500.0,0.00031238,2]
[405125804,1770867038593,-643.01010273,0.00031601,3]
[405125805,1770867038603,-250.0,0.00032244,2]
[405125806,1770867038612,-170.525249,0.00032358,2]
[405125807,1770867038622,-606.58331369,0.00032403,2]
[405125808,1770867038632,-490.07938898,0.0003242,2]
[405125809,1770867038642,-278.45973401,0.0003248,2]
[405125810,1770867038652,-560.0,0.00032481,2]
[405125811,1770867038666,-435.14878522,0.00032643,2]
[405125812,1770867038676,-150.0,0.000327,3]
[405125813,1770867038686,-1066.66560811,0.00032856,2]
[405125814,1770867038696,-29953.39518726,0.00033,120]
[405125815,1770867038707,-785.00555587,0.000331,2]
[405125816,1770867038717,-258.0,0.00033103,120]
[405125817,1770867038727,-161.47564691,0.000332,117]
[405125818,1770867038739,-170.525249,0.00033614,2]
[405125819,1770867038749,-6465.18,0.0003397,10]
[405125820,1770867038759,-2398.76,0.0003398,3]
[405125821,1770867038770,-9309.87,0.0003398,10]
[405125822,1770867038780,-1199.38,0.0003398,3]
[405125823,1770867038791,-7758.22,0.0003398,10]
[405125824,1770867038800,-1199.38,0.0003398,3]
[405125825,1770867038810,-100000.0,0.0003399,2]
[405125826,1770867038820,-785.00555587,0.00034451,2]
[405125827,1770867038830,-160.0,0.0003477,3]
[405125828,1770867038840,-170.525249,0.0003487,2]
[405125829,1770867038850,-8990.33511884,0.00034898,2]
[405125830,1770867038870,-1751.1857315,0.00034898,2]
[405125835,1770867040006,-3e-08,0.00034898,2]
[405125844,1770867045360,-1609.99227903,0.00024953,2]
[405125845,1770867045371,-1708.94865038,0.00034898,2]
[405125850,1770867090571,607.8440393,0.00013273,2]
[405125862,1770867307482,150.0,0.00021918,2]
[405125863,1770867307517,444.52553021,0.00022466,2]
[405125864,1770867378275,-231.00000006,0.00023655,30]
[405125865,1770867393717,3706.35744279,0.0002352,2]
[405125866,1770867436627,5000.0,0.0002352,2]
[405125867,1770867445185,3198.7297869,0.0002352,2]
[405125868,1770867453324,-553.79539611,0.00023684,2]
[405125869,1770867453345,-255.82728257,0.0002371,2]
[405125870,1770867454967,-160.00577039,0.0002371,2]
[405125871,1770867459795,5000.0,0.0002352,2]
[405125872,1770867469486,-173.46,0.000237,2]
[405125873,1770867488670,197.76050675,0.0002352,2]
[405125874,1770867528759,-376.05467282,0.0002361,2]
[405125875,1770867531082,-245.9968019,0.0002361,2]
[405125876,1770867532688,-300.0,0.0002361,2]
[405125877,1770867534431,-265.12851617,0.0002361,2]
[405125878,1770867537211,-649.99999996,0.0002361,2]
[405125879,1770867538849,-342.2128281,0.0002361,2]
[405125880,1770867541248,-478.39104371,0.0002361,2]
[405125881,1770867544795,-249.35732485,0.0002361,2]
[405125882,1770867546512,-287.78254614,0.0002361,2]
[405125883,1770867551022,-499.99956582,0.0002361,2]
[405125884,1770867560753,5000.0,0.0002352,2]
[405125885,1770867570515,1354.2172292,0.00023043,2]
[405125886,1770867575600,173.158625,0.0002352,2]
[405125887,1770867583606,5000.0,0.0002352,2]
[405125888,1770867591973,1349.22776101,0.0002352,2]
[405125889,1770867603061,293.53,0.0002351,2]
[405125890,1770867606903,5000.0,0.0002352,2]
[405125891,1770867629373,5000.0,0.0002352,2]
[405125892,1770867651413,5000.0,0.0002352,2]
[405125893,1770867659902,2080.98441934,0.00023499,2]
[405125894,1770867673590,5000.0,0.0002352,2]
[405125895,1770867695713,5000.0,0.0002352,2]
[405125896,1770867711063,238.9256373,0.00022643,2]
[405125897,1770867716431,296.18981561,0.00016438,2]
[405125898,1770867718669,5000.0,0.0002352,2]
[405125899,1770867740454,14480.25899376,0.00023498,2]
[405125900,1770867741099,4317.0947976,0.0002352,2]
[405125901,1770867784206,1117.68601004,0.0002352,2]
[405125902,1770867792165,1014.94503828,0.0002352,2]
[405125903,1770867844907,6260.7464519,0.00022669,2]
[405125904,1770867944276,-1430.70871079,0.00023555,2]
[405125906,1770867980435,1000.0,0.00022603,30]
[405125908,1770868027378,213.8777356,0.000226,2]
[405125909,1770868033092,-333.75226763,0.00023555,2]
[405125910,1770868034150,-455.52729689,0.00023555,2]
[405125911,1770868054084,-465.80178992,0.00023555,2]
[405125912,1770868085974,166.66666668,0.00023487,2]
[405125913,1770868089677,67023.9830298,0.00022602,2]
[405125915,1770868156083,-168.79809721,0.00023577,2]
[405125916,1770868156104,-300.0,0.00023585,2]
[405125917,1770868156130,-300.0,0.00023586,2]
[405125918,1770868156149,-300.0,0.00023586,2]
[405125919,1770868156169,-500.0,0.00023586,2]
[405125920,1770868156190,-500.0,0.00023586,2]
[405125921,1770868156209,-500.0,0.00023586,2]
[405125922,1770868156230,-500.0,0.00023586,2]
[405125923,1770868156250,-500.0,0.00023586,2]
[405125924,1770868156271,-500.0,0.00023586,2]
[405125925,1770868156292,-135.67334288,0.00023586,2]
[405125926,1770868157119,-364.32665712,0.00023586,2]
[405125927,1770868157141,-500.0,0.00023586,2]
[405125928,1770868157161,-500.0,0.00023586,2]
[405125929,1770868157181,-500.0,0.00023586,2]
[405125930,1770868157200,-500.0,0.00023586,2]
[405125931,1770868157219,-500.0,0.00023586,2]
[405125932,1770868157240,-500.0,0.00023586,2]
[405125933,1770868157259,-487.398081,0.00023586,2]
[405125934,1770868157280,-468.64976858,0.00023586,2]
[405125935,1770868157300,-500.0,0.00023586,2]
[405125936,1770868157325,-500.0,0.00023586,2]
[405125937,1770868157345,-500.0,0.00023586,2]
[405125938,1770868157365,-500.0,0.00023586,2]
[405125939,1770868157384,-500.0,0.00023586,2]
[405125940,1770868157404,-500.0,0.00023586,2]
[405125941,1770868157424,-500.0,0.00023586,2]
[405125942,1770868157444,-500.0,0.00023586,2]
[405125943,1770868157464,-500.0,0.00023586,2]
[405125944,1770868157482,-381.49583025,0.00023586,2]
[405125945,1770868157506,-241.3438114,0.00023586,2]
[405125946,1770868157527,-500.0,0.00023586,2]
[405125947,1770868157548,-500.0,0.00023586,2]
[405125948,1770868157567,-500.0,0.00023586,2]
[405125949,1770868157587,-500.0,0.00023586,2]
[405125950,1770868157608,-500.0,0.00023586,2]
[405125951,1770868157627,-500.0,0.00023586,2]
[405125952,1770868157647,-500.0,0.00023586,2]
[405125953,1770868157668,-500.0,0.00023586,2]
[405125954,1770868157688,-500.0,0.00023586,2]
[405125955,1770868157707,-500.0,0.00023586,2]
[405125956,1770868157727,-500.0,0.00023586,2]
[405125957,1770868157749,-500.0,0.00023586,2]
[405125958,1770868157771,-500.0,0.00023586,2]
[405125959,1770868157793,-500.0,0.00023586,2]
[405125960,1770868157814,-500.0,0.00023586,2]
[405125961,1770868157834,-500.0,0.00023586,2]
[405125962,1770868157855,-500.0,0.00023586,2]
[405125963,1770868157876,-500.0,0.00023586,2]
[405125964,1770868157896,-500.0,0.00023586,2]
[405125965,1770868157917,-500.0,0.00023586,2]
[405125966,1770868157937,-500.0,0.00023586,2]
[405125967,1770868157958,-500.0,0.00023586,2]
[405125968,1770868157979,-500.0,0.00023586,2]
[405125969,1770868157999,-500.0,0.00023586,2]
[405125970,1770868158020,-171.78749788,0.00023586,2]
[405125971,1770868158045,-500.0,0.00023586,2]
[405125972,1770868158066,-500.0,0.00023586,2]
[405125973,1770868158086,-500.0,0.00023586,2]
[405125974,1770868158108,-500.0,0.00023586,2]
[405125975,1770868158130,-500.0,0.00023586,2]
[405125976,1770868158152,-500.0,0.00023586,2]
[405125977,1770868158174,-500.0,0.00023586,2]
[405125978,1770868158196,-500.0,0.00023586,2]
[405125979,1770868158218,-585.63178653,0.00023586,2]
[405125980,1770868158240,-500.0,0.00023586,2]
[405125981,1770868158261,-500.0,0.00023586,2]
[405125982,1770868158348,-500.0,0.00023586,2]
[405125983,1770868158370,-500.0,0.00023586,2]
[405125984,1770868158392,-500.0,0.00023586,2]
[405125985,1770868158414,-500.0,0.00023586,2]
[405125986,1770868158437,-500.0,0.00023586,2]
[405125987,1770868158459,-500.0,0.00023586,2]
[405125988,1770868158481,-500.0,0.00023586,2]
[405125989,1770868158500,-500.0,0.00023586,2]
[405125990,1770868158521,-477.57331333,0.00023586,2]
[405125996,1770868219169,2765.52693568,0.00023486,2]
[405125997,1770868229246,678.0,0.00023,2]
[405126016,1770868231839,-1033.40785524,0.00023575,2]
[405126018,1770868231851,-166.59214476,0.00023575,2]
[405126019,1770868231860,-109.76785524,0.00023576,10]
[405126020,1770868231872,-997.32222237,0.00023576,10]
[405126021,1770868231893,-9901.47992239,0.00023576,10]
[405126022,1770868231902,-1700.54055062,0.00023576,3]
[405126028,1770868238024,-988.47944938,0.00023576,3]
[405126029,1770868238034,-9173.81,0.00023576,10]
[405126030,1770868238043,-1344.51,0.00023576,3]
[405126031,1770868238053,-7644.84,0.00023576,10]
[405126032,1770868238063,-672.26,0.00023576,3]
[405126033,1770868238075,-6370.7,0.00023576,10]
[405126034,1770868238085,-336.13,0.00023576,3]
[405126035,1770868238096,-300.0,0.00023585,2]
[405126036,1770868238105,-300.0,0.00023585,2]
[405126037,1770868238117,-300.0,0.00023585,2]
[405126038,1770868238128,-300.0,0.00023585,2]
[405126039,1770868238138,-790.0,0.00023586,2]
[405126040,1770868238151,-5275.2479649,0.00023586,2]
[405126041,1770868238162,-22.42668667,0.00023586,2]
[405126042,1770868238171,-500.0,0.00023586,2]
[405126043,1770868238182,-500.0,0.00023586,2]
[405126044,1770868238193,-500.0,0.00023586,2]
[405126045,1770868238204,-500.0,0.00023586,2]
[405126046,1770868238214,-500.0,0.00023586,2]
[405126047,1770868238225,-500.0,0.00023586,2]
[405126048,1770868238235,-500.0,0.00023586,2]
[405126049,1770868238245,-500.0,0.00023586,2]
[405126050,1770868238256,-500.0,0.00023586,2]
[405126051,1770868238267,-500.0,0.00023586,2]
[405126052,1770868238278,-500.0,0.00023586,2]
[405126053,1770868238288,-500.0,0.00023586,2]
[405126054,1770868238298,-500.0,0.00023586,2]
[405126055,1770868238309,-500.0,0.00023586,2]
[405126056,1770868238319,-500.0,0.00023586,2]
[405126057,1770868238330,-500.0,0.00023586,2]
[405126058,1770868238340,-500.0,0.00023586,2]
[405126059,1770868238351,-500.0,0.00023586,2]
[405126060,1770868238361,-500.0,0.00023586,2]
[405126061,1770868238371,-500.0,0.00023586,2]
[405126062,1770868238382,-500.0,0.00023586,2]
[405126063,1770868238392,-500.0,0.00023586,2]
[405126064,1770868238402,-500.0,0.00023586,2]
[405126065,1770868238412,-500.0,0.00023586,2]
[405126066,1770868238423,-500.0,0.00023586,2]
[405126067,1770868238433,-500.0,0.00023586,2]
[405126068,1770868238443,-500.0,0.00023586,2]
[405126069,1770868238453,-500.0,0.00023586,2]
[405126070,1770868238463,-500.0,0.00023586,2]
[405126071,1770868238473,-500.0,0.00023586,2]
[405126072,1770868238484,-500.0,0.00023586,2]
[405126073,1770868238493,-500.0,0.00023586,2]
[405126074,1770868238503,-500.0,0.00023586,2]
[405126075,1770868238514,-500.0,0.00023586,2]
[405126076,1770868238523,-500.0,0.00023586,2]
[405126077,1770868238534,-500.0,0.00023586,2]
[405126078,1770868238544,-500.0,0.00023586,2]
[405126079,1770868238555,-500.0,0.00023586,2]
[405126080,1770868238567,-500.0,0.00023586,2]
[405126081,1770868238578,-500.0,0.00023586,2]
[405126082,1770868238588,-500.0,0.00023586,2]
[405126083,1770868238599,-496.14935044,0.00023586,2]
[405126084,1770868238610,-500.0,0.00023586,2]
[405126085,1770868238621,-500.0,0.00023586,2]
[405126086,1770868238631,-500.0,0.00023586,2]
[405126087,1770868238641,-500.0,0.00023586,2]
[405126088,1770868238651,-500.0,0.00023586,2]
[405126089,1770868238662,-500.0,0.00023586,2]
[405126090,1770868238672,-500.0,0.00023586,2]
[405126091,1770868238683,-500.0,0.00023586,2]
[405126092,1770868238694,-500.0,0.00023586,2]
[405126093,1770868238711,-500.0,0.00023586,2]
[405126094,1770868238722,-500.0,0.00023586,2]
[405126095,1770868238732,-500.0,0.00023586,2]
[405126096,1770868238742,-500.0,0.00023586,2]
[405126097,1770868238752,-500.0,0.00023586,2]
[405126098,1770868238854,-500.0,0.00023586,2]
[405126099,1770868238864,-500.0,0.00023586,2]
[405126100,1770868238875,-500.0,0.00023586,2]
[405126101,1770868238886,-500.0,0.00023586,2]
[405126102,1770868238896,-500.0,0.00023586,2]
[405126103,1770868238906,-500.0,0.00023586,2]
[405126104,1770868238916,-500.0,0.00023586,2]
[405126105,1770868238926,-500.0,0.00023586,2]
[405126106,1770868238936,-500.0,0.00023586,2]
[405126107,1770868238946,-500.0,0.00023586,2]
[405126108,1770868238956,-500.0,0.00023586,2]
[405126109,1770868238966,-500.0,0.00023586,2]
[405126110,1770868238976,-500.0,0.00023586,2]
[405126111,1770868238986,-500.0,0.00023586,2]
[405126112,1770868238997,-500.0,0.00023586,2]
[405126113,1770868239007,-500.0,0.00023586,2]
[405126114,1770868239017,-500.0,0.00023586,2]
[405126115,1770868239026,-500.0,0.00023586,2]
[405126116,1770868239036,-500.0,0.00023586,2]
[405126117,1770868239046,-500.0,0.00023586,2]
[405126118,1770868239056,-500.0,0.00023586,2]
[405126119,1770868239067,-156.93597395,0.00023586,2]
[405126120,1770868239081,-500.0,0.00023586,2]
[405126121,1770868239092,-500.0,0.00023586,2]
[405126122,1770868239102,-500.0,0.00023586,2]
[405126123,1770868239114,-500.0,0.00023586,2]
[405126124,1770868239124,-500.0,0.00023586,2]
[405126125,1770868239136,-500.0,0.00023586,2]
[405126126,1770868239147,-500.0,0.00023586,2]
[405126127,1770868239157,-500.0,0.00023586,2]
[405126128,1770868239167,-500.0,0.00023586,2]
[405126129,1770868239177,-500.0,0.00023586,2]
[405126130,1770868239187,-500.0,0.00023586,2]
[405126131,1770868239198,-500.0,0.00023586,2]
[405126132,1770868239208,-500.0,0.00023586,2]
[405126133,1770868239217,-500.0,0.00023586,2]